bitfinex/quotes_ETHUSD_20260131
["timestamp","ask_amount","ask_price","bid_price","bid_amount"]
[1769879470208,0.01230365,2444.6,2442.8,0.0011]
[1769879470536,0.01230365,2444.6,2441.6,0.01230365]
[1769879470537,0.01230365,2443.2,2441.3,1.656]
[1769879470820,0.01230365,2442.7,2440.3,0.01230365]
[1769879470993,0.01230365,2442.7,2439.2,0.01230365]
[1769879470994,0.01230365,2441.7,2439.2,0.01230365]
[1769879471188,0.01230365,2441.7,2438.4,0.73836593]
[1769879471189,0.01230365,2440.4,2438.0,4.10169321]
[1769879471402,0.01230365,2439.4,2438.2,1.657]
[1769879471613,0.01230365,2438.7,2437.5,0.0700754]
[1769879471811,0.01230365,2437.7,2436.4,1.13739669]
[1769879472019,0.01230365,2437.7,2434.8,0.01230365]
[1769879472020,0.01230365,2437.0,2434.1,4.10812616]
[1769879472222,0.21062114,2436.4,2434.8,0.01230996]
[1769879472427,0.21062114,2436.4,2434.5,0.01230996]
[1769879472428,13.40467837,2436.2,2434.5,0.01230996]
[1769879472630,30.0,2436.1,2433.9,0.01230996]
[1769879472933,0.01230996,2434.0,2432.4,1.02778519]
[1769879473133,6.005,2433.9,2432.2,1.02786028]
[1769879473302,6.005,2433.9,2431.1,4.11323577]
[1769879473303,0.01232944,2433.5,2431.0,0.02674651]
[1769879473502,30.01232944,2433.4,2431.0,0.02674651]
[1769879473705,0.6005,2433.8,2432.2,0.01232944]
[1769879473938,13.51962243,2436.3,2432.2,0.01232944]
[1769879473939,0.10261462,2436.3,2433.4,0.01232944]
[1769879474226,0.10261462,2436.3,2433.0,0.01232944]
[1769879474227,13.63824867,2436.0,2433.0,0.01232944]
[1769879474442,0.01232944,2435.7,2433.1,0.01232944]
[1769879474753,0.01232944,2435.7,2432.8,0.01232944]
[1769879474754,0.01232944,2437.8,2435.3,0.01232944]
[1769879475050,0.01232944,2438.0,2435.0,0.01232944]
[1769879475051,0.01232944,2437.4,2435.0,0.01232944]
[1769879475253,0.01232944,2437.3,2434.4,0.01232944]
[1769879475468,0.01232944,2437.7,2435.3,0.01232944]
[1769879475741,0.01232944,2438.5,2436.5,0.01232944]
[1769879475944,0.01232944,2438.0,2434.9,0.01232944]
[1769879476121,0.01232944,2437.3,2434.9,0.01232944]
[1769879476313,42.89166669,2437.2,2432.7,0.01232944]
[1769879476513,0.01232944,2437.8,2432.6,1.04003048]
[1769879476514,0.01232944,2438.8,2436.0,0.513011]
[1769879476729,0.52582291,2438.7,2435.8,1.74732]
[1769879476927,0.01232944,2437.4,2435.4,0.01232944]
[1769879477149,0.01232944,2439.8,2436.8,0.01232944]
[1769879477348,0.01232944,2439.5,2436.1,0.01232944]
[1769879477646,0.01232944,2441.1,2437.7,0.01232944]
[1769879477815,0.01232944,2439.8,2437.3,0.01232944]
[1769879478178,0.01232944,2439.8,2435.2,0.01232944]
[1769879478179,0.01232944,2437.8,2435.2,0.01232944]
[1769879478364,0.45842291,2440.2,2435.5,0.01232944]
[1769879478651,0.01232944,2441.0,2436.9,0.01232944]
[1769879478948,0.01232944,2441.2,2438.9,0.01232944]
[1769879479160,0.01232944,2442.7,2439.6,0.01232944]
[1769879479369,0.01232944,2441.8,2439.6,0.01232944]
[1769879479531,0.01232944,2440.9,2438.8,0.41694195]
[1769879479726,6.524,2440.8,2437.9,0.46133409]
[1769879479927,0.6524,2440.7,2438.4,0.01232944]
[1769879480135,0.01232944,2442.9,2440.1,0.01232944]
[1769879480336,0.01232944,2443.5,2440.4,0.01232944]
[1769879480337,0.01232944,2443.0,2440.4,0.01232944]
[1769879480535,0.01232944,2443.0,2440.0,0.01232944]
[1769879480536,0.01232944,2441.9,2439.1,0.11472944]
[1769879480823,0.01232944,2441.9,2438.7,4.1127141]
[1769879480824,0.01232944,2443.5,2440.2,0.01232944]
[1769879481023,0.01232944,2443.5,2439.8,0.01232944]
[1769879481024,0.01232944,2442.1,2439.1,0.01232944]
[1769879481229,0.01232944,2443.0,2440.4,0.01232944]
[1769879481459,0.01232944,2442.1,2438.2,0.39021779]
[1769879481760,0.01232944,2442.1,2438.2,0.01232944]
[1769879481761,0.01232944,2441.0,2438.2,0.01232944]
[1769879482060,0.01232944,2441.0,2437.5,1.02563694]
[1769879482061,0.01232944,2440.0,2437.4,0.01232944]
[1769879482359,0.43571808,2440.9,2439.0,0.01232944]
[1769879482562,0.01232944,2440.7,2438.0,2.0246142]
[1769879482728,0.01232944,2441.3,2438.8,0.01232944]
[1769879482922,0.01232944,2440.7,2437.4,0.01232944]
[1769879483158,0.45842291,2441.2,2439.0,0.01232944]
[1769879483360,0.01232944,2439.6,2436.9,0.01232944]
[1769879483560,0.01232944,2439.6,2436.5,0.01232944]
[1769879483561,0.01232944,2438.9,2436.5,0.01232944]
[1769879483759,0.01232944,2439.3,2436.5,1.0260586]
[1769879483974,0.43283475,2439.1,2436.9,0.01232944]
[1769879484270,0.01232944,2437.3,2434.5,0.01232944]
[1769879484467,0.1024,2437.0,2434.8,0.01232944]
[1769879484654,0.01232944,2436.8,2433.6,0.01232944]
[1769879484856,0.81953619,2437.0,2434.9,0.01232944]
[1769879485055,0.40231917,2437.6,2435.7,0.01232944]
[1769879485265,0.01232944,2439.7,2437.0,0.01232944]
[1769879485573,0.01232944,2439.6,2437.2,0.01232944]
[1769879485864,0.01232944,2440.0,2437.7,0.01232944]
[1769879486064,0.01232944,2439.8,2437.5,0.01232944]
[1769879486266,0.01232944,2439.9,2437.7,0.01232944]
[1769879486585,0.01232944,2440.8,2438.4,1.03759067]
[1769879486888,0.01232944,2440.8,2438.5,0.01232944]
[1769879487050,0.01232944,2440.8,2438.6,0.01232944]
[1769879487051,0.01232944,2440.6,2438.6,0.01232944]
[1769879487254,0.01232944,2441.3,2438.5,0.11472944]
[1769879487255,0.01232944,2442.7,2439.9,7.1752045]
[1769879487578,0.01232944,2443.6,2441.4,0.01232944]
[1769879487741,0.01232944,2443.6,2441.1,0.1024]
[1769879487742,0.01232944,2443.2,2441.1,0.1024]
[1769879487941,0.01232944,2443.1,2441.1,0.1024]
[1769879488248,0.01232944,2443.6,2440.9,0.01232944]
[1769879488249,0.01637935,2444.3,2441.8,0.01637935]
[1769879488457,0.01637935,2444.6,2442.3,0.11877935]
[1769879488677,0.01637935,2444.7,2442.3,0.01637935]
[1769879488854,0.01637935,2443.4,2440.8,0.01637935]
[1769879489058,0.01637935,2442.8,2440.5,0.01637935]
[1769879489355,0.01637935,2441.8,2440.1,1.662]
[1769879489765,0.01637935,2441.7,2439.4,0.01637935]
[1769879489950,0.1024,2441.5,2439.1,0.01637935]
[1769879490155,0.01637935,2443.1,2439.7,0.01637935]
[1769879490350,0.1024,2442.2,2439.7,0.01637935]
[1769879490548,0.01637935,2443.0,2439.9,0.01637935]
[1769879490874,43.40467837,2442.6,2439.7,0.01637935]
[1769879491073,0.01637935,2441.6,2438.1,0.01637935]
[1769879491283,0.01637935,2442.7,2439.7,0.01637935]
[1769879491484,0.4778152,2442.4,2439.9,0.01637935]
[1769879491646,0.01637935,2443.0,2440.2,0.01637935]
[1769879491847,0.01637935,2443.2,2440.2,0.01637935]
[1769879491848,0.01637935,2443.9,2441.0,0.01637935]
[1769879492088,0.01637935,2442.2,2439.0,0.01637935]
[1769879492247,0.01637935,2441.4,2438.8,0.01637935]
[1769879492448,0.01637935,2441.0,2438.3,0.01637935]
[1769879492675,0.01637935,2441.4,2438.3,0.01637935]
[1769879492676,0.01637935,2442.4,2439.3,0.01637935]
[1769879492876,0.01637935,2444.2,2441.1,0.01637935]
[1769879493061,0.01637935,2445.0,2442.1,0.01637935]
[1769879493062,0.01637935,2444.3,2442.1,0.01637935]
[1769879493263,0.01637935,2443.5,2440.7,0.01637935]
[1769879493464,0.01637935,2443.2,2440.3,2.04388729]
[1769879493663,0.01637935,2443.2,2440.0,7.1752045]
[1769879493664,0.01637935,2443.3,2441.1,0.2335703]
[1769879493887,13.40467837,2440.4,2430.4,4.526]
[1769879494075,2.07032375,2440.3,2433.7,6.43167094]
[1769879494289,2.07032375,2440.3,2431.1,4.0]
[1769879494290,0.2335703,2437.2,2431.9,7.1752045]
[1769879494486,1.18202009,2437.6,2434.8,0.02051703]
[1769879494801,0.02051703,2436.2,2432.0,7.08764033]
[1769879494964,0.02051703,2435.6,2432.2,0.02051703]
[1769879495161,0.0123259,2433.7,2432.1,7.07888391]
[1769879495363,0.0123259,2432.9,2432.2,0.78169214]
[1769879495562,0.0123259,2432.6,2432.2,6.37011988]
[1769879495813,0.0123259,2432.8,2432.2,6.37011988]
[1769879496095,0.0123259,2435.7,2431.4,12.83544981]
[1769879496269,0.01233096,2433.7,2431.6,12.83544981]
[1769879496474,0.01233096,2434.1,2431.8,0.01233096]
[1769879496658,0.01233096,2435.1,2431.8,0.01233096]
[1769879496659,0.01233096,2434.8,2432.4,12.84778077]
[1769879496860,0.01233096,2435.0,2432.9,12.64309035]
[1769879497060,0.01233096,2436.4,2433.2,0.01233096]
[1769879497288,0.01233096,2435.6,2433.2,12.64309035]
[1769879497488,0.01233096,2436.2,2433.6,12.64309035]
[1769879497698,0.01233096,2435.2,2433.9,12.64309035]
[1769879497895,0.01233096,2435.6,2433.7,1.26554213]
[1769879498211,0.01233096,2435.7,2433.9,12.64309035]
[1769879498515,0.01233096,2437.0,2433.8,0.01233096]
[1769879498792,0.01233096,2434.4,2432.5,1.28601117]
[1769879498998,12.266,2434.3,2432.6,6.18516054]
[1769879499292,0.01233096,2433.8,2432.6,6.18516054]
[1769879499589,0.01233096,2433.8,2431.0,0.02674651]
[1769879499590,0.01233096,2432.8,2431.0,0.02674651]
[1769879499899,0.01233096,2431.1,2431.0,0.00974651]
[1769879500196,0.01233096,2431.1,2427.3,12.64309035]
[1769879500197,0.01234212,2429.1,2427.3,12.64309035]
[1769879500364,0.01234212,2429.1,2427.0,0.02105023]
[1769879500365,0.00661212,2428.5,2427.5,5.46365346]
[1769879500575,0.01234212,2427.8,2427.5,5.46365346]
[1769879500802,0.01234212,2428.2,2427.4,0.0700754]
[1769879500803,0.2335703,2430.9,2427.4,0.0700754]
[1769879501104,0.2335703,2430.9,2426.0,21.73243416]
[1769879501105,0.01235737,2428.2,2426.0,12.64309035]
[1769879501277,0.01235737,2428.5,2426.4,0.01235737]
[1769879501470,0.01235737,2429.0,2425.7,0.01235737]
[1769879501670,30.0,2428.9,2426.1,0.01235737]
[1769879502015,0.01235737,2427.5,2424.5,0.02567694]
[1769879502202,0.01235839,2427.6,2425.1,0.01235839]
[1769879502414,7.8122967,2425.0,2420.6,0.01235839]
[1769879502578,0.21246948,2420.9,2420.1,92.62517074]
[1769879502782,0.53739508,2424.9,2421.4,0.01235839]
[1769879502783,2.54576045,2424.1,2421.4,0.01235839]
[1769879503089,2.54576045,2424.1,2421.0,0.01235839]
[1769879503090,0.02471678,2421.3,2420.2,0.01238441]
[1769879503279,0.1024,2423.4,2416.6,9.08934381]
[1769879503483,0.1024,2423.4,2415.9,1.67638441]
[1769879503484,0.1024,2423.2,2417.7,0.01238441]
[1769879503679,0.11478441,2423.8,2417.3,0.08245981]
[1769879503680,0.01238441,2420.4,2417.8,13.46314972]
[1769879503880,0.01238441,2420.0,2417.9,1.34631497]
[1769879504101,0.01240207,2419.4,2417.3,0.0700754]
[1769879504287,0.01240207,2418.8,2417.3,0.0700754]
[1769879504502,0.01240207,2420.5,2416.6,0.01240207]
[1769879504698,0.01240207,2420.9,2418.6,13.46314972]
[1769879504921,0.01240207,2420.9,2417.0,49.17335001]
[1769879504922,0.31179002,2425.3,2420.4,13.46314972]
[1769879505124,0.01240207,2421.1,2418.7,2.25524935]
[1769879505325,0.01240207,2421.1,2416.9,0.01240207]
[1769879505326,0.01240207,2420.3,2418.8,10.70342846]
[1769879505511,0.01240207,2421.9,2419.3,13.46314972]
[1769879505712,0.01240207,2422.7,2419.4,1.34631497]
[1769879506025,0.01240207,2422.1,2419.4,1.28430462]
[1769879506323,0.74224353,2419.1,2417.0,9.08934381]
[1769879506537,15.5124508,2422.6,2416.6,0.0011]
[1769879506823,2.07670274,2422.4,2412.2,0.04850828]
[1769879506992,0.0842,2416.4,2412.9,0.08662042]
[1769879507190,0.52680027,2417.5,2416.2,0.01656555]
[1769879507394,0.97234713,2418.4,2416.1,0.01656555]
[1769879507594,0.33493871,2420.4,2416.9,9.10590936]
[1769879507811,29.78733188,2420.3,2417.6,0.01656555]
[1769879508027,0.33493871,2420.4,2418.2,0.01656555]
[1769879508195,0.00285,2420.3,2417.6,9.08934381]
[1769879508396,0.01240208,2419.3,2417.0,0.91059094]
[1769879508595,0.01240208,2418.9,2415.4,0.01240208]
[1769879508802,0.01240208,2419.0,2415.4,0.01240208]
[1769879508803,30.0,2418.8,2415.4,0.01240208]
[1769879509004,0.01240208,2418.0,2415.7,9.08934381]
[1769879509211,0.01241156,2416.1,2414.0,38.22069072]
[1769879509410,0.01526156,2418.0,2415.2,0.01241156]
[1769879509613,0.01526156,2418.0,2414.4,0.01241156]
[1769879509614,13.23619273,2417.9,2413.2,0.03723468]
[1769879509812,0.04964624,2414.7,2411.1,0.07446936]
[1769879510035,0.41138166,2417.9,2409.1,17.43755455]
[1769879510036,0.01241156,2417.4,2415.1,0.01241156]
[1769879510204,0.01242493,2415.0,2412.1,0.01242493]
[1769879510405,0.01242493,2413.5,2411.2,0.62274252]
[1769879510606,0.01242493,2412.2,2411.3,0.07446936]
[1769879510809,28.91404801,2412.1,2411.2,9.08934381]
[1769879511039,0.01242493,2413.1,2411.4,9.7075136]
[1769879511338,0.01242493,2413.3,2411.4,9.7075136]
[1769879511339,0.01243961,2413.3,2411.4,0.61523981]
[1769879511670,13.42344772,2412.1,2410.0,0.01243961]
[1769879511962,13.42344772,2412.1,2409.6,0.01243961]
[1769879511963,13.42344772,2409.9,2405.0,9.08934381]
[1769879512137,4.87705032,2409.8,2403.0,1.09]
[1769879512318,28.02393523,2410.7,2410.6,0.01245588]
[1769879512513,0.02491176,2410.4,2406.6,10.73611911]
[1769879512738,3.23125087,2413.1,2412.8,0.01245588]
[1769879512939,3.23125087,2413.1,2412.5,0.01245588]
[1769879512940,0.00593683,2413.9,2412.9,0.00672589]
[1769879513176,0.01166682,2412.8,2405.1,13.9970016]
[1769879513444,0.01166682,2412.8,2360.0,15.32]
[1769879513445,0.00593683,2411.0,2410.4,0.01245588]
[1769879513615,0.03737643,2405.7,2402.8,0.11578276]
[1769879513811,0.46592902,2410.9,2408.2,0.01245588]
[1769879514012,0.46592902,2410.9,2407.8,0.01245588]
[1769879514013,0.07914001,2406.9,2406.8,0.01245588]
[1769879514243,0.07914001,2406.9,2402.2,0.0700754]
[1769879514244,1.674,2408.9,2401.0,0.0096925]
[1769879514424,0.03737122,2408.6,2408.5,0.01245717]
[1769879514624,0.26144654,2410.5,2409.6,0.01245717]
[1769879514874,0.16014012,2408.7,2408.1,0.01245717]
[1769879515019,13.42344772,2406.4,2403.7,0.01245717]
[1769879515224,0.16014012,2408.7,2401.7,0.0124696]
[1769879515225,13.42344772,2406.2,2401.7,0.0124696]
[1769879515451,13.30017545,2406.1,2404.2,0.0124696]
[1769879515775,13.17672641,2406.0,2403.0,0.0124696]
[1769879515951,13.17672641,2406.0,2401.7,0.0122264]
[1769879515952,13.17672641,2406.0,2404.4,0.0124696]
[1769879516126,0.08697989,2406.3,2405.9,0.01247297]
[1769879516326,0.1410754,2414.8,2406.0,0.01247297]
[1769879516327,0.01247297,2408.7,2406.0,0.01247297]
[1769879516533,0.01247297,2407.8,2406.0,3.90272795]
[1769879516785,0.01247297,2411.2,2407.7,0.01247297]
[1769879516927,0.12802189,2405.8,2405.1,0.01247297]
[1769879517125,1.677,2406.4,2405.7,0.01665314]
[1769879517374,13.42344772,2405.7,2397.3,0.22832696]
[1769879517521,0.01665314,2404.4,2404.0,0.01665314]
[1769879517827,13.42344772,2404.3,2403.5,0.01665314]
[1769879518022,13.42344772,2407.4,2406.3,0.01665314]
[1769879518223,13.42344772,2406.3,2405.2,0.020787]
[1769879518420,13.42344772,2405.9,2404.6,0.020787]
[1769879518651,13.42344772,2405.9,2393.6,13.46314972]
[1769879518652,13.42344772,2405.0,2401.2,0.020787]
[1769879518850,13.42344772,2404.2,2401.6,0.020787]
[1769879519060,13.42344772,2404.2,2402.1,0.020787]
[1769879519227,13.42344772,2404.0,2401.2,0.01248491]
[1769879519422,35.192,2402.2,2401.0,0.01248491]
[1769879519640,13.42344772,2402.1,2393.9,0.66061892]
[1769879519859,15.22692701,2402.1,2398.4,0.01248491]
[1769879520061,15.22692701,2402.1,2398.3,0.01248491]
[1769879520062,13.42344772,2401.2,2398.5,0.01249869]
[1769879520246,3.97440483,2402.0,2399.5,0.01249869]
[1769879520596,0.21707601,2404.4,2403.4,0.01249869]
[1769879520744,0.19096419,2404.9,2404.8,0.01249869]
[1769879520942,6.84547632,2405.6,2405.4,0.01249869]
[1769879521145,0.0700754,2409.7,2406.3,0.01249869]
[1769879521367,0.0700754,2409.7,2405.9,0.01249869]
[1769879521368,5.56748942,2406.3,2404.9,3.18112076]
[1769879521597,0.01249869,2408.3,2404.4,0.01249869]
[1769879521598,35.192,2407.5,2405.4,1.71612257]
[1769879521868,35.192,2407.5,2405.3,0.01249869]
[1769879521869,0.01249869,2410.8,2409.3,0.21071736]
[1769879522079,0.01249869,2413.5,2409.4,18.18724159]
[1769879522237,0.01659717,2412.6,2409.3,0.21071736]
[1769879522441,0.01659717,2411.8,2411.5,0.099989]
[1769879522670,0.01659717,2411.8,2408.8,3.42037313]
[1769879522671,14.0,2418.4,2406.7,3.75032636]
[1769879522841,14.0,2418.4,2405.3,0.20510018]
[1769879522842,0.071,2420.5,2413.6,8.54486836]
[1769879523040,0.071,2420.5,2407.0,1.682]
[1769879523041,0.00118055,2413.9,2413.3,9.29039767]
[1769879523371,11.20692678,2417.8,2411.8,2.03234911]
[1769879523540,14.0,2418.2,2410.7,1.38462309]
[1769879523541,0.02487201,2412.3,2410.7,1.38462309]
[1769879523747,0.13887825,2417.6,2411.2,2.00964876]
[1769879524043,0.03730183,2408.9,2408.1,4.139]
[1769879524255,0.03730183,2408.8,2408.7,0.08206284]
[1769879524458,1.682,2425.5,2408.2,0.27879846]
[1769879524459,0.0372879,2409.3,2408.2,0.27879846]
[1769879524666,0.03730183,2409.0,2408.7,0.93786375]
[1769879524844,0.03730183,2409.1,2408.8,0.24880471]
[1769879525168,0.07045318,2410.3,2409.8,2.01910972]
[1769879525371,14.40826882,2424.7,2419.3,0.63433252]
[1769879525575,14.0,2424.5,2414.6,2.04724438]
[1769879525742,14.0,2424.5,2414.8,2.03142046]
[1769879525743,14.42275301,2424.5,2414.8,2.03142046]
[1769879525946,14.0,2424.3,2415.1,0.07045318]
[1769879526239,14.0,2424.3,2415.0,2.01658843]
[1769879526240,14.0,2424.1,2415.2,0.57965887]
[1769879526443,14.0,2423.9,2417.8,0.08265487]
[1769879526641,14.0,2423.7,2417.3,0.08265487]
[1769879526842,14.0,2423.5,2418.1,0.08265487]
[1769879527037,14.0,2423.5,2417.2,0.08265487]
[1769879527038,13.99586,2423.3,2415.2,0.00414]
[1769879527248,13.99793,2423.1,2417.9,0.08265487]
[1769879527448,13.99793,2423.1,2417.3,0.08265487]
[1769879527449,2.47630304,2423.0,2419.2,0.08265487]
[1769879527651,9.575,2422.9,2414.7,0.08265487]
[1769879527870,16.88339751,2422.8,2415.1,0.46811449]
[1769879528070,13.95660256,2420.5,2415.1,0.43811009]
[1769879528279,1.39566026,2420.4,2415.1,0.43811009]
[1769879528475,13.60291779,2420.4,2415.0,0.23639718]
[1769879528673,12.20725753,2420.4,2415.0,0.23639718]
[1769879528853,0.44679926,2420.3,2415.0,0.23639718]
[1769879529050,13.9652587,2420.2,2415.1,0.43811009]
[1769879529369,13.9652587,2420.2,2413.7,32.01711219]
[1769879529370,13.95660256,2420.0,2410.8,2.06931171]
[1769879529668,12.57163753,2420.1,2411.0,0.37493117]
[1769879529669,13.95660256,2419.8,2411.0,0.37493117]
[1769879529861,3.52585718,2419.9,2411.0,0.37493117]
[1769879529862,13.95660256,2419.6,2411.0,0.37493117]
[1769879530062,13.95660256,2419.4,2411.0,0.37493117]
[1769879530272,13.95660256,2419.2,2411.0,0.37493117]
[1769879530586,13.95660256,2418.1,2412.6,0.02484163]
[1769879530809,13.85190988,2412.5,2411.5,0.02484163]
[1769879530947,13.85190988,2412.5,2410.7,0.30604445]
[1769879530948,0.04928204,2411.6,2407.2,0.08759435]
[1769879531301,3.23406173,2418.0,2407.2,0.08759435]
[1769879531302,0.56786032,2412.3,2409.2,0.01660164]
[1769879531445,0.37815097,2412.6,2412.2,0.01660164]
[1769879531446,0.60158269,2412.6,2412.2,0.01660164]
[1769879531652,30.0,2414.8,2412.1,0.01660164]
[1769879531653,0.37474422,2413.3,2412.1,0.01660164]
[1769879531849,0.37474422,2413.3,2411.3,0.01660164]
[1769879531850,0.03320328,2411.9,2408.9,0.01660164]
[1769879532065,13.10657923,2411.1,2405.7,0.02074689]
[1769879532259,13.10657923,2411.1,2405.0,0.02074689]
[1769879532260,0.51170909,2411.1,2406.4,13.38359275]
[1769879532500,0.47890909,2413.0,2408.5,13.38359275]
[1769879532705,0.55400477,2413.3,2408.5,13.38359275]
[1769879532863,0.02074689,2412.3,2408.6,1.33835928]
[1769879533058,0.02074689,2410.4,2407.0,2.01194991]
[1769879533288,0.55109019,2412.2,2409.1,0.02074689]
[1769879533487,0.02074689,2410.3,2408.3,13.38359275]
[1769879533789,0.02074689,2411.4,2409.2,0.02074689]
[1769879533962,0.02074689,2411.7,2408.9,0.02074689]
[1769879534163,0.02074689,2411.7,2407.4,1.81450764]
[1769879534164,0.02074689,2409.3,2408.4,1.33835928]
[1769879534463,0.02074689,2410.5,2405.1,3.0]
[1769879534464,0.02074689,2407.0,2405.1,3.0]
[1769879534692,0.02074689,2407.3,2402.2,13.47118705]
[1769879534693,0.01877554,2406.0,2402.2,13.47118705]
[1769879535037,0.02074689,2406.2,2402.3,0.02074689]
[1769879535203,0.365998,2406.4,2403.5,0.02074689]
[1769879535390,0.02074689,2404.4,2402.3,1.34711871]
[1769879535594,0.02074689,2404.4,2399.4,2.08782229]
[1769879535595,0.02074689,2402.0,2399.4,2.08782229]
[1769879535889,0.02074689,2402.0,2398.9,0.02074689]
[1769879535890,0.02074689,2401.2,2397.5,0.16667118]
[1769879536112,0.02074689,2401.2,2395.2,0.02074689]
[1769879536113,0.02074689,2399.0,2392.8,2.06768802]
[1769879536313,0.01250782,2398.4,2394.4,0.01250782]
[1769879536590,0.01250782,2393.3,2392.1,0.0875943]
[1769879536794,0.01250782,2393.3,2390.5,0.01250782]
[1769879536795,0.01250782,2393.0,2391.0,13.39326694]
[1769879537112,0.01253682,2393.7,2391.3,13.38359275]
[1769879537298,0.01253682,2392.5,2391.1,1.33932669]
[1769879537500,0.01253682,2392.7,2391.0,0.00967419]
[1769879537834,0.01253682,2394.6,2391.0,0.00967419]
[1769879538009,0.01253682,2392.3,2388.0,0.003]
[1769879538211,0.01254573,2388.5,2388.0,0.003]
[1769879538412,0.01254573,2387.1,2385.2,13.38359275]
[1769879538721,0.01254573,2386.0,2385.0,4.0]
[1769879539024,0.01254573,2385.3,2385.1,0.4]
[1769879539209,0.01254415,2385.8,2384.0,1.68951143]
[1769879539210,0.01676797,2385.2,2384.0,1.68951143]
[1769879539409,0.01676797,2385.2,2385.1,0.03353171]
[1769879539945,0.01676797,2385.6,2382.0,0.0875943]
[1769879539946,0.01676797,2384.0,2382.0,0.0875943]
[1769879540236,0.02098196,2382.8,2382.5,0.00659972]
[1769879540446,0.02098196,2381.1,2381.0,0.00965573]
[1769879540639,0.02098196,2381.1,2376.3,14.99748737]
[1769879540640,12.97551343,2379.3,2376.3,14.99748737]
[1769879540944,12.97551343,2379.3,2376.7,0.02098196]
[1769879540945,0.96894446,2379.2,2376.7,0.02098196]
[1769879541106,0.02523447,2377.5,2376.8,16.10376674]
[1769879541300,0.02523447,2377.5,2375.8,0.31547335]
[1769879541301,0.02523447,2378.7,2376.7,0.39866465]
[1769879541531,0.4321762,2379.1,2376.0,13.38359275]
[1769879541701,0.4321762,2379.8,2376.1,19.02474477]
[1769879541907,12.94238912,2383.2,2376.1,3.48261828]
[1769879542105,13.10657923,2383.0,2373.6,0.02523447]
[1769879542351,30.42473037,2383.3,2373.6,0.02523447]
[1769879542352,0.02941609,2375.6,2373.6,13.90966446]
[1769879542501,0.02941609,2375.6,2373.3,0.02941609]
[1769879542704,13.10657923,2375.8,2372.5,0.02941609]
[1769879543003,12.93406787,2373.5,2371.6,0.35455663]
[1769879543343,12.93406787,2373.5,2366.2,0.89433593]
[1769879543344,11.88049224,2370.5,2366.2,0.89433593]
[1769879543541,0.01741452,2372.1,2363.0,0.02941609]
[1769879543542,0.43141459,2371.2,2369.5,0.60413959]
[1769879543843,0.02941609,2371.3,2371.1,0.0224331]
[1769879544024,0.02941609,2371.3,2369.6,0.59493664]
[1769879544025,1.13168782,2371.5,2368.3,2.13451593]
[1769879544226,0.03377594,2367.4,2364.0,0.76214743]
[1769879544428,2.14295134,2382.8,2367.8,13.67530253]
[1769879544626,2.14295134,2382.8,2364.1,6.73011975]
[1769879544627,39.898,2373.7,2369.4,0.10302847]
[1769879544814,39.898,2373.7,2365.7,13.59879134]
[1769879544815,0.03202624,2366.8,2365.7,13.59879134]
[1769879545015,0.03202624,2366.8,2362.1,0.03377594]
[1769879545016,1e-08,2365.8,2363.9,0.76129032]
[1769879545250,1.31065792,2372.3,2367.1,0.05292]
[1769879545546,35.853,2372.9,2367.2,1.05610003]
[1769879545868,13.10657923,2376.1,2367.2,16.64973708]
[1769879546160,21.00917526,2397.1,2367.2,16.64973708]
[1769879546161,13.10657923,2382.8,2367.4,13.38359275]
[1769879546307,13.10657923,2385.4,2368.0,15.49619794]
[1769879546503,0.38442224,2383.0,2370.2,13.74082103]
[1769879546736,35.853,2383.2,2373.0,2.0055047]
[1769879546949,35.853,2383.2,2370.3,30.0]
[1769879546950,0.34962696,2382.8,2373.9,13.38359275]
[1769879547187,0.0875943,2399.6,2375.5,13.38359275]
[1769879547188,13.10657923,2385.6,2375.5,13.38359275]
[1769879547481,13.10657923,2385.6,2370.4,2.2100443]
[1769879547482,13.10657923,2384.1,2375.7,13.38359275]
[1769879547767,2.12378748,2390.1,2376.1,13.38359275]
[1769879548085,11.51648152,2389.1,2376.5,13.38359275]
[1769879548380,11.87451194,2384.4,2376.6,1.56178819]
[1769879548538,11.51648152,2384.2,2376.0,15.43530079]
[1769879548847,11.41748152,2384.0,2375.8,1.05227712]
[1769879549038,0.57831235,2384.1,2375.8,1.05227712]
[1769879549039,11.36748152,2383.8,2375.9,0.31594711]
[1769879549240,11.31798152,2383.6,2375.8,1.05227712]
[1769879549449,35.0589,2381.3,2375.9,13.38359275]
[1769879549708,0.00589409,2383.5,2380.3,17.169859]
[1769879549894,11.31848152,2387.1,2378.1,13.38359275]
[1769879550084,0.15,2409.9,2378.3,15.397183]
[1769879550085,1e-08,2384.5,2378.3,15.397183]
[1769879550289,30.0,2388.9,2383.4,13.38359275]
[1769879550475,0.19157391,2388.9,2383.4,13.38359275]
[1769879550674,30.50947855,2388.8,2383.4,13.38359275]
[1769879550872,13.10657923,2395.0,2387.3,13.38359275]
[1769879551077,30.0,2394.5,2387.3,13.38359275]
[1769879551304,30.0,2394.5,2388.1,13.38359275]
[1769879551507,35.456,2396.4,2390.2,13.38359275]
[1769879551706,21.456,2396.4,2390.3,1.04589382]
[1769879552022,14.0,2399.5,2390.4,1.05962926]
[1769879552307,13.95000001,2403.4,2397.0,9.129706]
[1769879552523,13.95000001,2403.4,2391.9,0.04999999]
[1769879552524,30.34340382,2403.3,2397.1,9.129706]
[1769879552676,13.95,2403.1,2398.8,2.096546]
[1769879552876,13.95,2403.1,2396.3,100.0]
[1769879553077,1.395,2403.0,2396.4,1.13442272]
[1769879553277,1.19500001,2403.0,2402.1,8.91584657]
[1769879553476,14.0,2407.1,2402.9,8.91584657]
[1769879553713,14.0,2407.1,2402.9,1.04040777]
[1769879554010,14.0,2407.1,2404.6,8.91584657]
[1769879554182,14.0,2407.1,2403.6,8.91584657]
[1769879554384,13.95,2409.3,2405.0,8.91584657]
[1769879554684,0.0875943,2409.7,2403.0,1.24930767]
[1769879554685,13.975,2409.2,2403.0,1.24930767]
[1769879554888,0.001,2404.5,2402.8,4.05239405]
[1769879555079,13.975,2404.4,2400.9,2.09973427]
[1769879555279,13.10657923,2404.2,2398.9,2.07347496]
[1769879555503,13.10527093,2404.0,2399.9,1.25025005]
[1769879555702,13.10527093,2404.0,2394.0,30.0]
[1769879555703,13.10657923,2403.8,2398.5,2.03118769]
[1769879555905,13.10657923,2403.6,2398.0,4.1700547]
[1769879556109,13.10657923,2403.4,2398.0,4.16997321]
[1769879556417,13.10657923,2403.2,2397.8,13.0653497]
[1769879556715,13.10657923,2403.2,2396.9,4.1719359]
[1769879556716,13.10657923,2403.0,2396.8,15.15851394]
[1769879556934,30.0,2402.9,2397.1,4.17166441]
[1769879557083,13.35910272,2402.8,2396.5,8.89486696]
[1769879557283,13.35910272,2402.6,2395.2,1.04375028]
[1769879557617,13.35910272,2402.6,2390.7,4.18274523]
[1769879557618,13.35910272,2401.3,2393.4,1.04453914]
[1769879557779,30.0,2401.4,2393.4,1.04453914]
[1769879557780,13.35910272,2401.1,2394.6,21.38326017]
[1769879557982,13.35910272,2400.9,2393.4,1.04453914]